Cogmind - Beta 12 @@@ ROGUE MODE // 2023.04.11 @ 08:02:20 Player: Hekatonkheires Result: Destroyed by as-84223 with Assembled Blade Performance ------------- Evolutions (0) 0 Regions Visited (4) 800 Robots Destroyed (17) 85 Value Destroyed (368) 368 Prototype IDs (24) 480 Alien Tech Used (0) 0 Bonus (287) 287 TOTAL SCORE: 2020 Bonus ------- Aligned with FarCom 300 Friendly Fire -13 Cogmind --------- Core Integrity 0/250 Matter 282/300 Energy 280/280 System Corruption 0% Temperature Cool (24) Movement Treading (320) Ox2 Location -9/Mines Parts ------- > --- POWER (1) -------- Cooled Ion Engine > --- PROPULSION (2) --- Improved Treads > --- UTILITY (2) ------ High-capacity Storage Unit Signal Interpreter > --- WEAPON (2) ------- Light Assault Rifle Light Assault Rifle > --- INVENTORY (20) --- Cooled Ion Engine Light Treads Light Treads Light Treads Light Treads Improved Treads Flying Fortress v7 Large Storage Unit Targeting Computer Light Armor Plating Particle Gun Heavy Hammer Peak State ------------ > --- POWER ------------ Cooled Ion Engine > --- PROPULSION ------- Improved Treads Improved Treads > --- UTILITY ---------- High-capacity Storage Unit Signal Interpreter > --- WEAPON ----------- Beam Rifle Heavy Assault Rifle > --- INVENTORY -------- Cooled Ion Engine Cooled Ion Engine Light Treads Light Treads Light Treads Light Treads Light Treads Improved Treads Improved Treads Flying Fortress v7 Large Storage Unit Targeting Computer Light Armor Plating Particle Gun Light Assault Rifle Light Assault Rifle Heavy Hammer [Rating: 18] Favorites ----------- Power Cooled Ion Engine Engine Cooled Ion Engine Propulsion Light Treads Treads Light Treads Utility Large Storage Unit Storage Large Storage Unit Processor Signal Interpreter Weapon Assault Rifle Energy Gun Medium Laser Ballistic Gun Assault Rifle Build | -11 -10 -10 -10 -9 ------- Run | Jun Mat Min Exi Min Slots Evolved . | . . . . . Power . | . . . . . Propulsion . | . . . . . Utility . | . . . . . Weapon . | . . . . . Parts Attached 26 | 7 9 4 1 5 Power 4 | 1 2 . . 1 Engine 4 | 1 2 . . 1 Core . | . . . . . Reactor . | . . . . . Propulsion 10 | 2 4 2 . 2 Treads 10 | 2 4 2 . 2 Leg . | . . . . . Wheel . | . . . . . Hover . | . . . . . Flight . | . . . . . Utility 4 | 1 2 . 1 . Device . | . . . . . Storage 3 | 1 1 . 1 . Processor 1 | . 1 . . . Hackware . | . . . . . Protection . | . . . . . Artifact . | . . . . . Weapon 8 | 3 1 2 . 2 Energy Gun 3 | 1 1 1 . . Energy Cannon . | . . . . . Ballistic Gun 5 | 2 . 1 . 2 Ballistic Cannon . | . . . . . Launcher . | . . . . . Special Weapon . | . . . . . Impact Weapon . | . . . . . Slashing Weapon . | . . . . . Piercing Weapon . | . . . . . Special Melee Weapon . | . . . . . Unidentified Prototypes 1 | . 1 . . . Parts Lost 4 | . . . . 4 Power 1 | . . . . 1 Propulsion 1 | . . . . 1 Utility . | . . . . . Weapon 2 | . . . . 2 Highest Loss Streak 2 | . . . . 2 To Critical Strikes . | . . . . . Average Slot Usage (%) 92 | . 85 100 100 98 Engine 14 | . 14 14 14 14 Treads 27 | . 28 28 28 26 Storage 14 | . 14 14 14 14 Processor 7 | . . 14 14 14 Energy Gun 14 | . 14 14 14 14 Ballistic Gun 14 | . 14 14 14 14 Naked Turns . | . . . . . Heaviest Build 54 | 12 37 34 54 54 Greatest Support 46 | 40 40 46 46 46 Greatest Overweight (x) 1 | 1 1 . 1 1 Average Overweight (x) . | . . . . 1 Largest Inventory Capacity 20 | 8 15 15 20 20 Average Capacity 15 | 7 13 15 18 20 Most Carried 20 | 6 15 15 20 20 Average Carried 13 | 4 10 14 17 18 Final Capacity 20 | 8 15 15 20 20 Final Carried 20 | 6 15 15 20 15 Class Distribution -------------------- 100% | Mutant Dominant Class ---------------- Mutant | -10/Materials Mutant | -10/Mines Mutant | -10/Exiles Mutant | -9/Mines Resources | -11 -10 -10 -10 -9 ----------- Run | Jun Mat Min Exi Min Matter Collected 594 | 181 257 96 . 60 Remotely . | . . . . . Salvage Created 569 | . 314 142 . 113 Parts 43 | . 28 15 . . Haulers Intercepted . | . . . . . Recyclers Shooed . | . . . . . Parts Field Recycled . | . . . . . Retrieved Matter . | . . . . . Parts Self-Destructed . | . . . . . Prevented . | . . . . . Kills | -11 -10 -10 -10 -9 ------- Run | Jun Mat Min Exi Min Combat Hostiles Destroyed 21 | . 8 5 . 8 Guns 21 | . 8 5 . 8 Classes Destroyed 6 | . 4 1 . 1 Worker 1 | . 1 . . . Watcher 3 | . 3 . . . Swarmer 7 | . 4 3 . . Grunt 4 | . 4 . . . Sentry 2 | . . 2 . . Assembled 8 | . . . . 8 Best Kill Streak 8 | . 4 3 . 8 Combat Bots Only 8 | . 4 3 . 8 Max Kills in Single Turn 1 | . 1 1 . 1 Gunslinging . | . . . . . Exploded . | . . . . . Melee . | . . . . . Uniques/NPCs Destroyed . | . . . . . Combat | -11 -10 -10 -10 -9 -------- Run | Jun Mat Min Exi Min Damage Taken 1541 | . 392 210 . 939 Core 261 | . 35 36 . 190 Absorbed by Shields . | . . . . . Core Remaining (%) 100 | 100 . . . . Volleys Fired 77 | . 37 12 . 28 Largest 2 | . 2 2 . 2 Hottest 85 | . 70 85 . 79 Shots Fired 154 | . 74 24 . 56 Gun 154 | . 74 24 . 56 Cannon . | . . . . . Launcher . | . . . . . Special . | . . . . . Kinetic 78 | . 37 12 . 29 Thermal 76 | . 37 12 . 27 Explosive . | . . . . . Electromagnetic . | . . . . . Robot Hit Streak 11 | . 11 10 . 4 Robot Miss Streak 5 | . 5 2 . 3 Penetration Max . | . . . . . Secondary Targets 5 | . 1 . . 4 Max Gunslinging Chain 1 | . 1 . . 1 Shots Hit Robots 96 | . 47 16 . 33 Core Hits 43 | . 15 7 . 21 Critical Kills . | . . . . . Critical Parts Destroyed . | . . . . . Critical Strikes 5 | . 3 . . 2 Burn 5 | . 3 . . 2 Melee Attacks . | . . . . . Impact . | . . . . . Slashing . | . . . . . Piercing . | . . . . . Sneak Attacks . | . . . . . Combat Hostiles . | . . . . . Follow-up Attacks . | . . . . . Damage Inflicted 1312 | . 658 245 . 409 Guns 1268 | . 620 245 . 403 Cannons . | . . . . . Explosions . | . . . . . Melee . | . . . . . Ramming 44 | . 38 . . 6 Kinetic 548 | . 260 118 . 170 Thermal 720 | . 360 127 . 233 Explosive . | . . . . . Electromagnetic . | . . . . . Impact . | . . . . . Slashing . | . . . . . Piercing . | . . . . . Highest Corruption . | . . . . . Average Corruption . | . . . . . Corruption Purged . | . . . . . Corruption Blocked . | . . . . . Overload Shots . | . . . . . Overflow Damage . | . . . . . Projectiles . | . . . . . Explosions . | . . . . . Melee . | . . . . . Knockbacks . | . . . . . Impact . | . . . . . Kinetic . | . . . . . Secondary . | . . . . . Self-Inflicted Damage . | . . . . . Shots . | . . . . . Rammed 12 | . 10 . . 2 Targets Rammed 13 | . 11 . . 2 Kicked . | . . . . . Crushed 1 | . 1 . . . Highest Temperature 320 | . 87 126 . 320 Average Temperature 58 | . 14 60 . 107 Received Heat Transfer 285 | . 120 45 . 120 Siege Activations . | . . . . . Robots Corrupted . | . . . . . Combat Hostiles . | . . . . . Parts Fried . | . . . . . Impact Corruptions . | . . . . . Robots Melted . | . . . . . Combat Hostiles . | . . . . . Parts Melted 4 | . 4 . . . Heat Transferred 2294 | . 1258 296 . 740 Parts Sabotaged . | . . . . . Parts Stolen . | . . . . . Parts Stripped . | . . . . . Power Chain Reactions . | . . . . . Missiles Intercepted . | . . . . . Alert | -11 -10 -10 -10 -9 ------- Run | Jun Mat Min Exi Min Peak Influence 215 | . 215 140 . 15 Initial . | . . . . . Average 45 | . 36 116 . 2 Maximum Alert Level 1 | . 1 . . . Low Security (%) 96 | 100 94 100 . 100 Level 1 3 | . 5 . . . Level 2 . | . . . . . Level 3 . | . . . . . Level 4 . | . . . . . Level 5 . | . . . . . High Security . | . . . . . Max Security . | . . . . . Squads Dispatched 1 | . 1 . . . Investigation . | . . . . . Extermination . | . . . . . Reinforcement 1 | . 1 . . . Assault . | . . . . . Garrison . | . . . . . Intercept . | . . . . . Searches Triggered . | . . . . . Construction Impeded . | . . . . . Haulers Reinforced . | . . . . . Active Scanning Responses . | . . . . . Cargo Convoy Interrupts . | . . . . . Stealth | -11 -10 -10 -10 -9 --------- Run | Jun Mat Min Exi Min Distress Signals 2 | . 2 . . . Communications Jammed . | . . . . . Distress Signals . | . . . . . Times Spotted 35 | . 17 5 . 13 Peak Tracking Total 6 | . 5 3 . 6 Tactical Retreats 1 | . . . . 1 Traps | -11 -10 -10 -10 -9 ------- Run | Jun Mat Min Exi Min Traps Triggered 1 | . 1 . . . Indirectly . | . . . . . Trap Hack Attempts . | . . . . . Triggered . | . . . . . Disarmed . | . . . . . Reprogrammed . | . . . . . Reused . | . . . . . Traps Extracted . | . . . . . Installed . | . . . . . Triggered . | . . . . . Exploded 2 | . . . 2 . Machines | -11 -10 -10 -10 -9 ---------- Run | Jun Mat Min Exi Min Machines Disabled 1 | . . 1 . . Max in Single Turn 1 | . . 1 . . Machines Repaired . | . . . . . Machines Sabotaged . | . . . . . Overloaded Fab Kills . | . . . . . Hacking | -11 -10 -10 -10 -9 --------- Run | Jun Mat Min Exi Min Machines Accessed 8 | . 6 . 2 . Terminals 6 | . 6 . . . Fabricators . | . . . . . Repair Stations . | . . . . . Recycling Units . | . . . . . Scanalyzers . | . . . . . Garrison Access . | . . . . . Total Hacks 20 | . 15 . 5 . Successful 13 | . 8 . 5 . Failed 6 | . 6 . . . Catastrophic 1 | . 1 . . . Database Lockouts 1 | . 1 . . . Manual 13 | . 12 . 1 . Terminals 15 | . 15 . . . Fabricators . | . . . . . Repair Stations . | . . . . . Recycling Units . | . . . . . Scanalyzers . | . . . . . Garrison Access . | . . . . . Terminal Hacks 11 | . 6 . 5 . Record 4 | . . . 4 . Robot Analysis 2 | . 2 . . . Alert Level 2 | . 2 . . . Unreport Threat 1 | . 1 . . . Locate Traps 1 | . 1 . . . EX-Prototype ID Bank 1 | . . . 1 . Fabricator Hacks . | . . . . . Repair Station Hacks . | . . . . . Recycling Unit Hacks . | . . . . . Scanalyzer . | . . . . . Garrison Access Hacks . | . . . . . Unauthorized Hacks 2 | . 2 . . . Terminals 2 | . 2 . . . Assimilate 1 | . 1 . . . Botnet 1 | . 1 . . . Fabricators . | . . . . . Repair Stations . | . . . . . Recycling Units . | . . . . . Scanalyzers . | . . . . . Garrison Access . | . . . . . Data Cores Recovered . | . . . . . Used . | . . . . . Hacking Detections 6 | . 6 . . . Full Trace Events . | . . . . . Feedback Events . | . . . . . Feedback Blocked . | . . . . . Robot Schematics Acquired . | . . . . . Robots Built . | . . . . . Authchips . | . . . . . Time . | . . . . . Total Robot Build Rating . | . . . . . Part Schematics Acquired . | . . . . . Parts Built . | . . . . . Authchips . | . . . . . Time . | . . . . . Total Part Build Rating . | . . . . . Parts Repaired . | . . . . . Time . | . . . . . Parts Recycled . | . . . . . Recycled Matter . | . . . . . Retrieved Matter . | . . . . . Retrieved Components . | . . . . . Parts Scanalyzed . | . . . . . Part Schematics Acquired . | . . . . . Parts Damaged . | . . . . . Bothacking | -11 -10 -10 -10 -9 ------------ Run | Jun Mat Min Exi Min Used RIF Installer . | . . . . . Robots Hacked . | . . . . . Non-combat . | . . . . . Combat . | . . . . . Robot Hacks Applied . | . . . . . Relay Couplers Released . | . . . . . Fabnet Peak Effective % . | . . . . . Robots Rewired . | . . . . . Allies Hacked . | . . . . . Hacks Repelled . | . . . . . Allies | -11 -10 -10 -10 -9 -------- Run | Jun Mat Min Exi Min Total Allies 1 | . 1 . . . Largest Group 1 | . 1 1 1 1 Highest-Rated Group 10 | . 10 10 10 10 Highest-Rated Ally 10 | . 10 10 10 10 Total Orders . | . . . . . Ally Attacks . | . . . . . Total Damage . | . . . . . Kills . | . . . . . Allies Corrupted . | . . . . . Allies Melted . | . . . . . Intel | -11 -10 -10 -10 -9 ------- Run | Jun Mat Min Exi Min Robot Analysis Total 2 | . 2 . . . Derelict Logs Recovered 2 | . . 2 . . Drone Launches . | . . . . . Drone Recoveries . | . . . . . Exploration | -11 -10 -10 -10 -9 ------------- Run | Jun Mat Min Exi Min Turns Passed 2446 | 81 1207 314 647 197 Spaces Moved 1140 | 46 591 164 295 44 Core 9 | 9 . . . . Treads 1131 | 37 591 164 295 44 Legs . | . . . . . Wheels . | . . . . . Hover . | . . . . . Flight . | . . . . . Fastest Speed 50 | 50 160 160 160 240 Average Speed 177 | 141 160 160 217 240 Slowest Speed 240 | 160 240 160 240 240 Overloaded Moves . | . . . . . Propulsion Burnouts . | . . . . . Robots Hopped . | . . . . . Cave-ins Triggered . | . . . . . Exploration Rate (%) 43 | 5 87 31 70 24 Regions Visited 4 Branch Regions 3 Pre-discovered Areas 2 | . . 1 1 . Known Exits Taken 3 | . 1 1 1 . Unknown Exits Taken 1 | 1 . . . . Scrap Searched . | . . . . . Spaces Dug . | . . . . . Terrain Destroyed . | . . . . . Melee . | . . . . . Projectile . | . . . . . AOE . | . . . . . Terrain Rammed . | . . . . . Walls Destroyed . | . . . . . Machines Disabled . | . . . . . Actions | -11 -10 -10 -10 -9 --------- Run | Jun Mat Min Exi Min Total 1409 | 58 771 196 303 81 Wait 109 | . 102 4 1 2 Move 1136 | 45 590 163 294 44 Hop . | . . . . . Pick Up 29 | 6 13 6 4 . Fast Attach 12 | 6 6 . . . Attach 5 | . . . . 5 Detach . | . . . . . Swap 9 | 1 3 4 1 . Drop 19 | . 9 7 3 . Fire 77 | . 37 12 . 28 Melee . | . . . . . Ram . | . . . . . Kick . | . . . . . Crush 13 | . 11 . . 2 Escape Stasis . | . . . . . Rewire . | . . . . . Trap . | . . . . . Miscellaneous . | . . . . . Route ------- -11/Junkyard -10/Materials (discovered 3 exits: *Mat / *Min x2) -10/Mines (discovered 2 exits: *Mat / *Exi) -10/Exiles -9/Mines History --------- Turn | Location | Event 8 | -11/Junkyard | Discovered new exit (range 16) 82 | -11/Junkyard | Entered Materials 246 | -10/Materials | Discovered new exit (range 10) 305 | -10/Materials | Build established: Mutant 688 | -10/Materials | Discovered new exit (range 8) 782 | -10/Materials | Central database locked down 1172 | -10/Materials | Discovered new exit (range 13) 1287 | -10/Materials | Identified exit to Mines 1289 | -10/Materials | Entered Mines 1289 | -10/Mines | Accompanied by 1 ally 1313 | -10/Mines | Met a Derelict bent on vengeance 1477 | -10/Mines | Learned location of Zion (-6) 1491 | -10/Mines | Learned Materials machine intel 1518 | -10/Mines | Discovered new exit (range 6) 1525 | -10/Mines | Identified exit to Materials 1536 | -10/Mines | Deemed a non-threat by the Exiles lab entrance 1536 | -10/Mines | Discovered new exit (range 5) 1602 | -10/Mines | Identified exit to Exiles 1603 | -10/Mines | Entered Exiles 1603 | -10/Exiles | Accompanied by 1 ally 1643 | -10/Exiles | Met 8R-AWN 1672 | -10/Exiles | Met EX-HEX 1796 | -10/Exiles | Met EX-DEC 1904 | -10/Exiles | Met EX-BIN 1937 | -10/Exiles | Aligned with FarCom system 1940 | -10/Exiles | Given EX-Vault access code 1995 | -10/Exiles | Opened EX-Vault 2012 | -10/Exiles | Found Flying Fortress v7 2065 | -10/Exiles | Warned to stay clear of 0b10 Research branches 2093 | -10/Exiles | Exiles lab attacked by MAIN.C 2231 | -10/Exiles | Discovered new exit (range 10) 2248 | -10/Exiles | Identified exit to Mines 2250 | -10/Exiles | Left Exiles lab with Flying Fortress v7 2250 | -10/Exiles | Entered Mines 2250 | -9/Mines | Accompanied by 1 ally 2335 | -9/Mines | Assembled infested the area 2359 | -9/Mines | Core integrity fell below 50% 2400 | -9/Mines | Core integrity fell below 20% 2428 | -9/Mines | Destroyed 8 combat bots 2447 | -9/Mines | Destroyed by as-84223 with Assembled Blade Last Messages --------------- 02373_ as-49556 destroyed. 02373_ Switching to secondary target: as-03741. 02375_ as-03741 destroyed. 02376_ K-01 Serf collects debris. 02381_ as-03413 suffers critical hit (Burn). 02381_ as-03413 destroyed. 02381_ Switching to secondary target: as-84071. 02382_ K-01 Serf collects debris. 02391_ Cld. Ion Engine destroyed. 02392_ K-01 Serf collects debris. 02392_ as-84071 destroyed. 02392_ Switching to secondary target: as-99598. 02395_ K-01 Serf collects debris. 02407_ as-99598 destroyed. 02410_ Acquired 11 matter. 02412_ Acquired 17 matter. 02424_ Acquired 15 matter. 02437_ Imp. Treads severed. 02442_ Beam Rifle destroyed. 02447_ Lgt. Treads destroyed. Map ----- +----------------------------------------------------+ | ?????????????????????????????????????????????????? | | ?????????????????????????????????????????????????? | | ?????????????????????????????????????????????????? | | ?????????????????????????????????????????????????? | | ?????????????????????????????????????????????????? | | ?????????????????????????????????????????????????? | | ?????????????????????????????????????????????????? | | ?????????????????????????????????????????????????? | | ?????????????????????????????????????????????????? | | ?????????????????????????????????????????????????? | | ?????????????????????????????????????????????????? | | ?????????????????????????????????????????????????? | | ??????????????????????????#??????????????????????? | | ?????????????????????????? ??????????????????????? | | ?????????????????????????# ??????????????????????? | | ????????????????????????# ??????????????????????? | | ???????????????????????? ??????????????????????? | | ???????????????????????? ??????????????????????? | | ????????????????????????# ??????????????????????? | | ????????????????????????# #??????????????????????? | | ????????????????????????# #??????????????????????? | | ????????????????????????# #??????????????????????? | | ????????????????????????# #??????????????????????? | | ????????????????????????# #??????????????????????? | | ????????????????????????#a#??????????????????????? | | ????????????????????????#@#??????????????????????? | | ????????????????????????# #??????????????????????? | | ??????????????####???#### #?????????# ?????????? | | ?????????????## ##?## ##a####### #????????? | | ????????????## ### # %% ????????? | | ??????????### #o% ????????? | | ?????????## ## %##### #???????????? | | ?????????# ## =#????????##???????????? | | ?????????# ## #?????????????????????? | | ?????????# ### #?????????????????????? | | ??????#### ##?## #?????????????????????? | | ?????## ##??# ####?????????????????????? | | ?????# ### #????????????????????????? | | ?????# #????????????????????????? | | ????## #???????????????????????? | | ?#### ??????????????????????? | | ## ?????????????????????? | | # #????????????????????? | | # ## ##????????????????????? | | # ### ###### ##?????????????????????? | | # ##?# #????## ##??????????????????????? | | ## ##??# #?????#####???????????????????????? | | ?## ##???? #?????????????????????????????????? | | ??## ##?????###?????????????????????????????????? | | ???## #??????????????????????????????????????????? | +----------------------------------------------------+ Best States ------------- Heat Dissipation 25 Energy Generation 14 Energy Capacity 280 Matter Stores 300 Matter Capacity 300 Sight Range 16 Terrain Scan Density 10 Evasion (%) 40 Recoil Reduction 2 Item Schematics ----------------- None Robot Schematics ------------------ None Fabricated ------------ Nothing Alien Tech Used ----------------- None Achievements -------------- None Challenges ------------ None Game ------ Seed ChromaticFluxCleaver Manual? 0 Play Time 00:27:37 Cumulative 31.5 hours Start 2023.04.11 @ 07:24:51 End 2023.04.11 @ 08:02:20 Sessions 1 Manual Loads 0 Difficulty Rogue Special Mode None Game No. 28 Rogue 28 Adventurer 0 Explorer 0 Win Type - Total 0 Types 0/0/0/0/0/0/0/0/0 Lore% 36 Gallery% 34 Achievement% 29 Wizard Run 0 Options --------- ASCII 0 Keyboard 0 Movement Numpad Keybinds 0 Fullscreen 1 Font 14/SmallcapsGlow Map View 84x54 Tactical HUD 1 Map Filters NONE Filters NONE Steam 1 RUN: 6fe8bfa2-b249-44b4-8218-ebe2d65cfe15